[Event "XXX Roquetas de Mar Open 2019"]
[Site "Roquetas de Mar"]
[Date "2019.01.04"]
[Round "4"]
[White "Barski, Radoslaw"]
[Black "Sanchez Jerez, Emilio Miguel"]
[Result "1-0"]
[ECO "C03"]
[WhiteElo "2458"]
[BlackElo "2183"]
[Annotator "ChessBase"]
[PlyCount "97"]
[EventDate "2019.01.02"]
[EventType "swiss"]
[EventCountry "ESP"]
[SourceTitle "playchess.com"]
[Source "ChessBase"]
[SourceQuality "1"]
[TimeControl "5400+30"]

1. e4 {[%emt 0:00:00]} e6 {[%emt 0:00:00]} 2. d4 {[%emt 0:00:00]} d5 {[%emt 0:00:00]} 3. Nd2 {[%emt 0:00:00]} Be7 {[%emt 0:00:00]} 4. Bd3 {[%emt 0:00:05]} c5 {[%emt 0:00:19]} 5. dxc5 {[%emt 0:00:06]} Nf6 {[%emt 0:00:10]} 6. Qe2 {[%emt 0:00:12]} O-O {[%emt 0:00:21]} 7. Ngf3 {[%emt 0:00:04]} a5 {[%emt 0:00:27]} 8. O-O {[%emt 0:00:11]} Na6 {[%emt 0:00:19]} 9. e5 {[%emt 0:00:46]} Nd7 {[%emt 0:00:09]} 10. c4 {[%emt 0:00:14]} Naxc5 {[%emt 0:01:33]} 11. Bc2 {[%emt 0:09:00]} dxc4 {[%emt 0:00:18]} 12. Nxc4 {[%emt 0:00:19]} b5 {[%emt 0:00:15]} 13. Nd6 {[%emt 0:28:15]} Nxe5 {[%emt 0:01:06]} 14. Nxe5 {[%emt 0:01:36]} Bxd6 {[%emt 0:01:18]} 15. Rd1 {[%emt 0:00:09]} Qc7 {[%emt 0:13:34]} 16. Bf4 {[%emt 0:00:28]} Bb7 {[%emt 0:08:46]} 17. Rxd6 {[%emt 0:12:30]} Qxd6 {[%emt 0:01:03]} 18. Ng6 {[%emt 0:00:06]} Qd4 {[%emt 0:14:03]} 19. Be3 {[%emt 0:31:11]} Qxb2 {[%emt 0:07:45]} 20. Rb1 {[%emt 0:01:31]} Qxa2 {[%emt 0:09:48]} 21. Ne7+ {[%emt 0:06:28]} Kh8 {[%emt 0:00:10]} 22. Bxc5 {[%emt 0:00:01]} f5 {[%emt 0:12:07]} 23. f3 {[%emt 0:04:31]} Rac8 {[%emt 0:07:31]} 24. Nxc8 {[%emt 0:00:02]} Rxc8 {[%emt 0:00:12]} 25. Qd3 {[%emt 0:01:08]} Bd5 {[%emt 0:09:46]} 26. Bb3 {[%emt 0:00:09]} Bxb3 {[%emt 0:02:47]} 27. Rxb3 {[%emt 0:00:01]} b4 {[%emt 0:02:47]} 28. Qd7 {[%emt 0:00:47]} Qa1+ {[%emt 0:02:33]} 29. Kf2 {[%emt 0:00:07]} Qa2+ {[%emt 0:00:08]} 30. Kg3 {[%emt 0:00:47]} Rg8 {[%emt 0:00:13]} 31. Qxe6 {[%emt 0:02:03]} f4+ {[%emt 0:01:53]} 32. Kxf4 {[%emt 0:00:02]} Qxg2 {[%emt 0:00:40]} 33. Re3 {[%emt 0:02:55]} Qxh2+ {[%emt 0:00:18]} 34. Ke4 {[%emt 0:00:04]} Qh5 {[%emt 0:01:30]} 35. Kd4 {[%emt 0:00:43]} Rd8+ {[%emt 0:00:33]} 36. Kc4 {[%emt 0:00:02]} h6 {[%emt 0:00:39]} 37. Bd4 {[%emt 0:01:00]} Rf8 {[%emt 0:02:35]} 38. Qd7 {[%emt 0:00:50]} Qf7+ {[%emt 0:00:23]} 39. Qxf7 {[%emt 0:00:09]} Rxf7 {[%emt 0:00:00]} 40. Kb5 {[%emt 0:00:46]} Rf5+ {[%emt 0:00:11]} 41. Be5 {[%emt 0:00:19]} b3 {[%emt 0:00:34]} 42. Ka4 {[%emt 0:00:16]} Kh7 {[%emt 0:00:45]} 43. Kxb3 {[%emt 0:00:03]} h5 {[%emt 0:00:22]} 44. Kc4 {[%emt 0:00:19]} g5 {[%emt 0:00:40]} 45. Kd4 {[%emt 0:00:09]} g4 {[%emt 0:00:37]} 46. f4 {[%emt 0:00:32]} h4 {[%emt 0:00:12]} 47. Ke4 {[%emt 0:00:02]} h3 {[%emt 0:01:01]} 48. Kxf5 {[%emt 0:00:26]} h2 {[%emt 0:00:07]} 49. Kxg4 {[%emt 0:00:04]} 1-0

[Event "XXX Roquetas de Mar Open 2019"]
[Site "Roquetas de Mar"]
[Date "2019.01.04"]
[Round "4"]
[White "Tejedor Fuente, Enrique"]
[Black "Frolyanov, Dmitry"]
[Result "0-1"]
[ECO "B33"]
[WhiteElo "2428"]
[BlackElo "2517"]
[Annotator "ChessBase"]
[PlyCount "72"]
[EventDate "2019.01.02"]
[EventType "swiss"]
[EventCountry "ESP"]
[SourceTitle "playchess.com"]
[Source "ChessBase"]
[SourceQuality "1"]
[TimeControl "5400+30"]

1. e4 {[%emt 0:01:55]} c5 {[%emt 0:00:00]} 2. Nc3 {[%emt 0:00:17]} Nc6 {[%emt 0:00:00]} 3. Nf3 {[%emt 0:00:16]} Nf6 {[%emt 0:00:37]} 4. d4 {[%emt 0:00:07]} cxd4 {[%emt 0:00:05]} 5. Nxd4 {[%emt 0:00:01]} e5 {[%emt 0:00:08]} 6. Ndb5 {[%emt 0:00:15]} d6 {[%emt 0:00:07]} 7. Bg5 {[%emt 0:00:31]} a6 {[%emt 0:00:07]} 8. Na3 {[%emt 0:00:12]} b5 {[%emt 0:00:07]} 9. Nd5 {[%emt 0:00:04]} Be7 {[%emt 0:00:08]} 10. Bxf6 {[%emt 0:00:04]} Bxf6 {[%emt 0:00:05]} 11. c3 {[%emt 0:00:18]} Rb8 {[%emt 0:00:35]} 12. Nc2 {[%emt 0:00:49]} Bg5 {[%emt 0:00:13]} 13. Be2 {[%emt 0:03:18]} O-O {[%emt 0:00:25]} 14. O-O {[%emt 0:01:08]} Be6 {[%emt 0:12:15]} 15. Ncb4 {[%emt 0:19:41]} Nxb4 {[%emt 0:00:32]} 16. Nxb4 {[%emt 0:00:22]} Qb6 {[%emt 0:01:05]} 17. Bg4 {[%emt 0:00:21]} a5 {[%emt 0:03:35]} 18. Bxe6 {[%emt 0:04:41]} fxe6 {[%emt 0:05:05]} 19. Nd3 {[%emt 0:03:09]} Bd8 {[%emt 0:00:36]} 20. a4 {[%emt 0:17:41]} Qc6 {[%emt 0:01:22]} 21. Re1 {[%emt 0:00:22]} Bb6 {[%emt 0:00:54]} 22. Re2 {[%emt 0:02:52]} Rf6 {[%emt 0:07:11]} 23. Kh1 {[%emt 0:00:36]} Rbf8 {[%emt 0:01:14]} 24. f3 {[%emt 0:00:25]} bxa4 {[%emt 0:00:38]} 25. Qxa4 {[%emt 0:00:35]} Qc7 {[%emt 0:00:15]} 26. Nf2 {[%emt 0:09:42]} Qf7 {[%emt 0:15:45]} 27. Ng4 {[%emt 0:00:03]} Rf4 {[%emt 0:00:55]} 28. Qc6 {[%emt 0:09:49]} Bc5 {[%emt 0:04:30]} 29. h3 {[%emt 0:02:46]} Qe7 {[%emt 0:12:44]} 30. Rxa5 {[%emt 0:06:41]} Rxg4 {[%emt 0:00:42]} 31. fxg4 {[%emt 0:00:31]} Rf1+ {[%emt 0:01:18]} 32. Kh2 {[%emt 0:00:02]} Bg1+ {[%emt 0:00:33]} 33. Kg3 {[%emt 0:00:01]} h5 {[%emt 0:00:17]} 34. h4 {[%emt 0:06:30]} Bh2+ {[%emt 0:01:21]} 35. Kh3 {[%emt 0:00:08]} hxg4+ {[%emt 0:00:08]} 36. Kxg4 {[%emt 0:00:09]} Rf4+ {[%emt 0:00:08]} 0-1

[Event "XXX Roquetas de Mar Open 2019"]
[Site "Roquetas de Mar"]
[Date "2019.01.04"]
[Round "4"]
[White "Arjun Kalyan"]
[Black "Del Rio De Angelis, Salvador G."]
[Result "1-0"]
[ECO "C18"]
[WhiteElo "2395"]
[BlackElo "2501"]
[Annotator "ChessBase"]
[PlyCount "69"]
[EventDate "2019.01.02"]
[EventType "swiss"]
[EventCountry "ESP"]
[SourceTitle "playchess.com"]
[Source "ChessBase"]
[SourceQuality "1"]
[TimeControl "5400+30"]

1. e4 {[%emt 0:00:00]} e6 {[%emt 0:00:00]} 2. d4 {[%emt 0:00:30]} d5 {[%emt 0:00:00]} 3. Nc3 {[%emt 0:00:07]} Bb4 {[%emt 0:00:08]} 4. e5 {[%emt 0:00:20]} c5 {[%emt 0:00:22]} 5. a3 {[%emt 0:00:12]} Bxc3+ {[%emt 0:00:43]} 6. bxc3 {[%emt 0:00:05]} Qa5 {[%emt 0:00:11]} 7. Bd2 {[%emt 0:00:42]} Qa4 {[%emt 0:00:13]} 8. Qg4 {[%emt 0:00:33]} g6 {[%emt 0:00:55]} 9. Nf3 {[%emt 0:01:10]} Nc6 {[%emt 0:01:15]} 10. Ra2 {[%emt 0:06:08]} h6 {[%emt 0:01:32]} 11. Qh4 {[%emt 0:02:59]} c4 {[%emt 0:00:45]} 12. Be2 {[%emt 0:01:40]} Rh7 {[%emt 0:00:21]} 13. O-O {[%emt 0:02:49]} Bd7 {[%emt 0:00:14]} 14. g4 {[%emt 0:09:43]} Rg7 {[%emt 0:03:40]} 15. Rb1 {[%emt 0:13:47]} b6 {[%emt 0:00:41]} 16. Ne1 {[%emt 0:02:22]} g5 {[%emt 0:02:14]} 17. Qh3 {[%emt 0:05:03]} O-O-O {[%emt 0:00:41]} 18. Ng2 {[%emt 0:04:57]} Rf8 {[%emt 0:06:52]} 19. f4 {[%emt 0:02:15]} Qa5 {[%emt 0:08:29]} 20. Rd1 {[%emt 0:09:25]} f6 {[%emt 0:02:56]} 21. exf6 {[%emt 0:08:38]} Rxf6 {[%emt 0:00:48]} 22. fxg5 {[%emt 0:01:35]} hxg5 {[%emt 0:00:10]} 23. Qh8 {[%emt 0:02:44]} Rff7 {[%emt 0:26:17]} 24. Rf1 {[%emt 0:01:17]} Nce7 {[%emt 0:00:16]} 25. Rxf7 {[%emt 0:01:58]} Rxf7 {[%emt 0:00:05]} 26. Bxg5 {[%emt 0:01:18]} Kb7 {[%emt 0:00:08]} 27. Qh3 {[%emt 0:04:42]} Qb5 {[%emt 0:01:13]} 28. Ra1 {[%emt 0:00:02]} Qb2 {[%emt 0:00:11]} 29. Rf1 {[%emt 0:00:28]} Rxf1+ {[%emt 0:01:22]} 30. Bxf1 {[%emt 0:03:36]} Qxa3 {[%emt 0:07:07]} 31. Qg3 {[%emt 0:01:38]} Nc8 {[%emt 0:00:25]} 32. h4 {[%emt 0:00:53]} Nd6 {[%emt 0:00:18]} 33. Qe5 {[%emt 0:01:07]} Kc6 {[%emt 0:03:34]} 34. Bf4 {[%emt 0:04:16]} Nb5 {[%emt 0:01:01]} 35. Qb8 {[%emt 0:00:55]} 1-0

[Event "XXX Roquetas de Mar Open 2019"]
[Site "Roquetas de Mar"]
[Date "2019.01.04"]
[Round "4"]
[White "Dardha, Daniel"]
[Black "Gascon Del Nogal, Jose Rafael"]
[Result "1/2-1/2"]
[ECO "A45"]
[WhiteElo "2337"]
[BlackElo "2486"]
[Annotator "RC"]
[PlyCount "76"]
[EventDate "2019.01.02"]
[EventType "swiss"]
[EventCountry "ESP"]
[SourceTitle "playchess.com"]
[Source "ChessBase"]
[SourceQuality "1"]
[TimeControl "5400+30"]

1. d4 {[%emt 0:04:13]} Nf6 {[%emt 0:00:00]} 2. Bf4 {[%emt 0:01:06]} c5 {[%emt 0:01:01]} 3. e3 {[%emt 0:00:25]} Qb6 {[%emt 0:00:08]} 4. Nc3 {[%emt 0:01:18]} e6 {[%emt 0:02:17]} 5. a3 {[%emt 0:05:52]} Nc6 {[%emt 0:04:38]} 6. Nf3 {[%emt 0:00:52]} a6 {[%emt 0:05:03]} 7. Be2 {[%emt 0:01:01]} d5 {[%emt 0:01:23]} 8. O-O {[%emt 0:01:03]} Qd8 {[%emt 0:02:45]} 9. dxc5 {[%emt 0:25:17]} Bxc5 {[%emt 0:00:47]} 10. Bd3 {[%emt 0:01:20]} Bd6 {[%emt 0:09:41]} 11. Bg5 {[%emt 0:10:20]} h6 {[%emt 0:01:37]} 12. Bh4 {[%emt 0:00:21]} g5 {[%emt 0:00:54]} 13. Bg3 {[%emt 0:00:12]} Bxg3 {[%emt 0:00:11]} 14. fxg3 {[%emt 0:04:56]} Ng4 {[%emt 0:03:47]} 15. Qd2 {[%emt 0:11:09]} Qb6 {[%emt 0:05:11]} 16. Na4 {[%emt 0:04:28]} Qc7 {[%emt 0:09:56]} 17. Qc3 {[%emt 0:04:38]} Rg8 {[%emt 0:04:20]} 18. e4 {[%emt 0:01:37]} d4 {[%emt 0:04:59]} 19. Nxd4 {[%emt 0:00:21]} Bd7 {[%emt 0:00:04]} 20. Nc5 {[%emt 0:03:51]} Nxd4 {[%emt 0:05:49]} 21. Qxd4 {[%emt 0:00:05]} Bc6 {[%emt 0:00:11]} 22. Be2 {[%emt 0:01:35]} Qe5 {[%emt 0:01:13]} 23. Rad1 {[%emt 0:07:10]} Qxd4+ {[%emt 0:01:12]} 24. Rxd4 {[%emt 0:00:05]} Ne5 {[%emt 0:00:09]} 25. Rfd1 {[%emt 0:00:51]} Rc8 {[%emt 0:02:26]} 26. b4 {[%emt 0:01:24]} Ke7 {[%emt 0:01:01]} 27. Kf2 {[%emt 0:00:56]} Rc7 {[%emt 0:00:54]} 28. Ke3 {[%emt 0:01:18]} Ra8 {[%emt 0:00:18]} 29. Rb1 {[%emt 0:03:28]} a5 {[%emt 0:01:22]} 30. Nd3 {[%emt 0:00:43]} Ng6 {[%emt 0:04:39]} 31. Rc4 {[%emt 0:00:36]} axb4 {[%emt 0:01:05]} 32. axb4 {[%emt 0:00:02]} Ra3 {[%emt 0:05:28]} 33. b5 {[%emt 0:02:35]} Ne5 {[%emt 0:00:38]} 34. Rc5 {[%emt 0:00:06]} Nd7 {[%emt 0:01:19]} 35. Rc4 {[%emt 0:00:46]} Nb6 {[%emt 0:00:10]} 36. Rc5 {[%emt 0:00:16]} Nd7 {[%emt 0:06:51]} 37. Rc4 {[%emt 0:00:11]} Ne5 {[%emt 0:01:12]} 38. Rc5 {[%emt 0:00:09]} Nd7 {[%emt 0:01:46]} 1/2-1/2

[Event "XXX Roquetas de Mar Open 2019"]
[Site "Roquetas de Mar"]
[Date "2019.01.04"]
[Round "4"]
[White "MARTIN CARMONA, Gaston Manuel"]
[Black "Espinosa Aranda, Angel"]
[Result "0-1"]
[ECO "E10"]
[WhiteElo "2329"]
[BlackElo "2478"]
[Annotator "ChessBase"]
[PlyCount "85"]
[EventDate "2019.01.02"]
[EventType "swiss"]
[EventCountry "ESP"]
[SourceTitle "playchess.com"]
[Source "ChessBase"]
[SourceQuality "1"]
[TimeControl "5400+30"]

1. d4 {[%emt 0:06:09]} e6 {[%emt 0:00:58]} 2. Nf3 {[%emt 0:01:01]} Nf6 {[%emt 0:01:09]} 3. c4 {[%emt 0:04:25]} a6 {[%emt 0:03:48]} 4. e3 {[%emt 0:01:46]} d5 {[%emt 0:00:05]} 5. Nc3 {[%emt 0:01:51]} dxc4 {[%emt 0:00:08]} 6. Bxc4 {[%emt 0:00:18]} b5 {[%emt 0:00:03]} 7. Be2 {[%emt 0:00:37]} Bb7 {[%emt 0:00:05]} 8. O-O {[%emt 0:01:41]} Nbd7 {[%emt 0:00:43]} 9. b3 {[%emt 0:01:49]} c5 {[%emt 0:04:21]} 10. Bb2 {[%emt 0:01:22]} Be7 {[%emt 0:01:59]} 11. Rc1 {[%emt 0:02:34]} Qb6 {[%emt 0:00:54]} 12. a4 {[%emt 0:11:33]} b4 {[%emt 0:03:29]} 13. Nb1 {[%emt 0:00:28]} O-O {[%emt 0:03:28]} 14. Nbd2 {[%emt 0:00:47]} Rac8 {[%emt 0:00:44]} 15. Nc4 {[%emt 0:01:16]} Qa7 {[%emt 0:01:21]} 16. Nfe5 {[%emt 0:03:59]} Rfd8 {[%emt 0:01:25]} 17. Bf3 {[%emt 0:02:39]} Nxe5 {[%emt 0:12:23]} 18. Nxe5 {[%emt 0:00:46]} Nd5 {[%emt 0:01:51]} 19. Be4 {[%emt 0:09:29]} g6 {[%emt 0:02:45]} 20. Qf3 {[%emt 0:08:45]} f5 {[%emt 0:02:20]} 21. dxc5 {[%emt 0:01:10]} Bf6 {[%emt 0:03:43]} 22. Qh3 {[%emt 0:07:58]} Nc3 {[%emt 0:02:22]} 23. Bxb7 {[%emt 0:14:10]} Qxb7 {[%emt 0:00:38]} 24. Nc4 {[%emt 0:00:28]} Rxc5 {[%emt 0:04:17]} 25. Rfe1 {[%emt 0:01:29]} Rcd5 {[%emt 0:03:06]} 26. Qf3 {[%emt 0:00:41]} Kg7 {[%emt 0:02:23]} 27. h3 {[%emt 0:01:07]} R8d7 {[%emt 0:03:59]} 28. a5 {[%emt 0:02:35]} Rd3 {[%emt 0:01:23]} 29. Nb6 {[%emt 0:00:05]} Qxf3 {[%emt 0:02:52]} 30. gxf3 {[%emt 0:00:02]} R7d6 {[%emt 0:00:50]} 31. Nc4 {[%emt 0:00:28]} R6d5 {[%emt 0:00:11]} 32. e4 {[%emt 0:04:12]} fxe4 {[%emt 0:00:24]} 33. fxe4 {[%emt 0:00:02]} Rh5 {[%emt 0:03:02]} 34. e5 {[%emt 0:01:19]} Bg5 {[%emt 0:00:06]} 35. Ne3 {[%emt 0:00:49]} Bxe3 {[%emt 0:00:40]} 36. fxe3 {[%emt 0:00:23]} Rxe5 {[%emt 0:00:15]} 37. Bxc3 {[%emt 0:00:11]} bxc3 {[%emt 0:00:50]} 38. Kf2 {[%emt 0:00:47]} Rxa5 {[%emt 0:00:28]} 39. Re2 {[%emt 0:00:28]} Rf5+ {[%emt 0:00:45]} 40. Kg3 {[%emt 0:00:39]} Rd2 {[%emt 0:00:26]} 41. Ree1 {[%emt 0:00:52]} c2 {[%emt 0:00:09]} 42. e4 {[%emt 0:00:02]} Rc5 {[%emt 0:00:14]} 43. Re3 {[%emt 0:00:01]} 0-1

[Event "XXX Roquetas de Mar Open 2019"]
[Site "Roquetas de Mar"]
[Date "2019.01.04"]
[Round "4"]
[White "Sreeshwan Maralakshikari"]
[Black "Marin, Mihail"]
[Result "1/2-1/2"]
[ECO "E00"]
[WhiteElo "2278"]
[BlackElo "2540"]
[Annotator "ChessBase"]
[PlyCount "122"]
[EventDate "2019.01.02"]
[EventType "swiss"]
[EventCountry "ESP"]
[SourceTitle "playchess.com"]
[Source "ChessBase"]
[SourceQuality "1"]
[TimeControl "5400+30"]

1. d4 {[%emt 0:00:00]} e6 {[%emt 0:00:00]} 2. c4 {[%emt 0:00:00]} Bb4+ {[%emt 0:00:00]} 3. Nc3 {[%emt 0:00:00]} b6 {[%emt 0:00:00]} 4. e3 {[%emt 0:00:09]} Bxc3+ {[%emt 0:02:12]} 5. bxc3 {[%emt 0:00:04]} Bb7 {[%emt 0:00:04]} 6. Nf3 {[%emt 0:00:06]} f5 {[%emt 0:00:06]} 7. Bd3 {[%emt 0:00:36]} Nf6 {[%emt 0:00:06]} 8. O-O {[%emt 0:00:42]} O-O {[%emt 0:00:05]} 9. Ne1 {[%emt 0:00:38]} c5 {[%emt 0:00:43]} 10. f3 {[%emt 0:00:16]} Nc6 {[%emt 0:04:20]} 11. Bb2 {[%emt 0:00:55]} Qe7 {[%emt 0:13:56]} 12. Qe2 {[%emt 0:02:58]} d6 {[%emt 0:04:50]} 13. g3 {[%emt 0:16:18]} Rae8 {[%emt 0:20:54]} 14. Ng2 {[%emt 0:00:30]} g6 {[%emt 0:00:24]} 15. Qd2 {[%emt 0:18:46]} Na5 {[%emt 0:09:46]} 16. Rae1 {[%emt 0:03:34]} Qc7 {[%emt 0:04:38]} 17. Qe2 {[%emt 0:05:36]} e5 {[%emt 0:00:29]} 18. e4 {[%emt 0:00:22]} exd4 {[%emt 0:12:25]} 19. cxd4 {[%emt 0:00:06]} cxd4 {[%emt 0:00:37]} 20. Bxd4 {[%emt 0:04:29]} Nc6 {[%emt 0:00:04]} 21. Bxf6 {[%emt 0:10:05]} Rxf6 {[%emt 0:00:06]} 22. Qb2 {[%emt 0:00:04]} Ne5 {[%emt 0:01:27]} 23. exf5 {[%emt 0:00:09]} Ref8 {[%emt 0:00:04]} 24. Be4 {[%emt 0:00:21]} Bxe4 {[%emt 0:00:17]} 25. Rxe4 {[%emt 0:00:27]} Rxf5 {[%emt 0:00:14]} 26. f4 {[%emt 0:01:37]} Nxc4 {[%emt 0:01:09]} 27. Qe2 {[%emt 0:00:13]} d5 {[%emt 0:00:49]} 28. Re7 {[%emt 0:00:06]} Qc5+ {[%emt 0:00:17]} 29. Kh1 {[%emt 0:00:06]} R5f7 {[%emt 0:00:25]} 30. Rxf7 {[%emt 0:07:03]} Rxf7 {[%emt 0:00:19]} 31. f5 {[%emt 0:00:10]} Qe7 {[%emt 0:12:56]} 32. Qd1 {[%emt 0:07:38]} Qe4 {[%emt 0:02:21]} 33. Re1 {[%emt 0:00:51]} Qxf5 {[%emt 0:00:05]} 34. Nf4 {[%emt 0:00:03]} g5 {[%emt 0:03:07]} 35. Nxd5 {[%emt 0:11:26]} Qf3+ {[%emt 0:00:28]} 36. Qxf3 {[%emt 0:00:05]} Rxf3 {[%emt 0:00:02]} 37. Re7 {[%emt 0:00:09]} Rf7 {[%emt 0:00:29]} 38. Re4 {[%emt 0:00:05]} Nd2 {[%emt 0:01:59]} 39. Re2 {[%emt 0:00:27]} Nf3 {[%emt 0:00:19]} 40. Kg2 {[%emt 0:00:03]} Kg7 {[%emt 0:00:35]} 41. a4 {[%emt 0:00:25]} h6 {[%emt 0:00:48]} 42. a5 {[%emt 0:00:32]} bxa5 {[%emt 0:02:04]} 43. Ra2 {[%emt 0:00:06]} Ne1+ {[%emt 0:00:22]} 44. Kg1 {[%emt 0:00:11]} Nf3+ {[%emt 0:00:14]} 45. Kg2 {[%emt 0:00:04]} Ne5 {[%emt 0:01:35]} 46. Rxa5 {[%emt 0:00:05]} Rd7 {[%emt 0:00:25]} 47. Nc3 {[%emt 0:03:32]} Nc4 {[%emt 0:02:00]} 48. Ra4 {[%emt 0:00:40]} Nb6 {[%emt 0:00:45]} 49. Ra6 {[%emt 0:00:05]} Nc8 {[%emt 0:00:45]} 50. h4 {[%emt 0:00:06]} Rd2+ {[%emt 0:00:46]} 51. Kh3 {[%emt 0:00:15]} gxh4 {[%emt 0:01:05]} 52. Kxh4 {[%emt 0:00:04]} Rd6 {[%emt 0:00:06]} 53. Ra5 {[%emt 0:00:14]} a6 {[%emt 0:00:12]} 54. g4 {[%emt 0:00:39]} Ne7 {[%emt 0:00:13]} 55. g5 {[%emt 0:00:17]} hxg5+ {[%emt 0:01:40]} 56. Kxg5 {[%emt 0:00:06]} Kf7 {[%emt 0:00:23]} 57. Kf4 {[%emt 0:00:05]} Rf6+ {[%emt 0:00:43]} 58. Ke3 {[%emt 0:00:12]} Re6+ {[%emt 0:00:09]} 59. Ne4 {[%emt 0:00:24]} Ke8 {[%emt 0:00:09]} 60. Kd3 {[%emt 0:00:04]} Nc6 {[%emt 0:00:13]} 61. Rh5 {[%emt 0:00:12]} Nb4+ {[%emt 0:01:52]} 1/2-1/2

[Event "XXX Roquetas de Mar Open 2019"]
[Site "Roquetas de Mar"]
[Date "2019.01.04"]
[Round "4"]
[White "Manu David Suthandram R"]
[Black "Sadzikowski, Daniel"]
[Result "1/2-1/2"]
[ECO "C11"]
[WhiteElo "2252"]
[BlackElo "2534"]
[Annotator "ChessBase"]
[PlyCount "87"]
[EventDate "2019.01.02"]
[EventType "swiss"]
[EventCountry "ESP"]
[SourceTitle "playchess.com"]
[Source "ChessBase"]
[SourceQuality "1"]
[TimeControl "5400+30"]

1. e4 {[%emt 0:04:12]} e6 {[%emt 0:00:00]} 2. Nf3 {[%emt 0:00:18]} d5 {[%emt 0:00:02]} 3. Nc3 {[%emt 0:00:32]} d4 {[%emt 0:00:14]} 4. Ne2 {[%emt 0:00:07]} c5 {[%emt 0:00:06]} 5. c3 {[%emt 0:00:05]} Nf6 {[%emt 0:00:23]} 6. cxd4 {[%emt 0:03:35]} cxd4 {[%emt 0:01:18]} 7. Nexd4 {[%emt 0:02:19]} Nxe4 {[%emt 0:00:35]} 8. Nxe6 {[%emt 0:05:24]} Bxe6 {[%emt 0:00:11]} 9. Qa4+ {[%emt 0:00:05]} Nc6 {[%emt 0:00:04]} 10. Qxe4 {[%emt 0:00:08]} Qd5 {[%emt 0:00:01]} 11. Qxd5 {[%emt 0:11:18]} Bxd5 {[%emt 0:00:55]} 12. b3 {[%emt 0:00:57]} Bc5 {[%emt 0:33:38]} 13. Bc4 {[%emt 0:17:16]} O-O-O {[%emt 0:11:37]} 14. O-O {[%emt 0:01:13]} Bxf3 {[%emt 0:07:31]} 15. gxf3 {[%emt 0:00:06]} Ne5 {[%emt 0:00:13]} 16. d3 {[%emt 0:05:14]} Rhe8 {[%emt 0:13:14]} 17. Be3 {[%emt 0:03:17]} Bd4 {[%emt 0:12:09]} 18. Rac1 {[%emt 0:04:24]} Kb8 {[%emt 0:00:05]} 19. Bf4 {[%emt 0:03:32]} f6 {[%emt 0:07:28]} 20. Kg2 {[%emt 0:00:15]} g5 {[%emt 0:01:36]} 21. Bg3 {[%emt 0:00:04]} f5 {[%emt 0:03:55]} 22. f4 {[%emt 0:00:14]} Nxc4 {[%emt 0:03:44]} 23. dxc4 {[%emt 0:01:12]} g4 {[%emt 0:00:21]} 24. Bh4 {[%emt 0:00:58]} Rd6 {[%emt 0:00:15]} 25. Rfd1 {[%emt 0:03:38]} Re2 {[%emt 0:02:10]} 26. a3 {[%emt 0:02:18]} a5 {[%emt 0:00:38]} 27. b4 {[%emt 0:00:06]} Bb2 {[%emt 0:00:31]} 28. Rxd6 {[%emt 0:00:54]} Bxc1 {[%emt 0:00:01]} 29. Rd8+ {[%emt 0:03:11]} Ka7 {[%emt 0:00:58]} 30. Rd5 {[%emt 0:00:11]} axb4 {[%emt 0:00:29]} 31. axb4 {[%emt 0:00:06]} Re4 {[%emt 0:00:14]} 32. Ra5+ {[%emt 0:00:26]} Kb6 {[%emt 0:00:45]} 33. Bd8+ {[%emt 0:03:27]} Kc6 {[%emt 0:00:01]} 34. Rxf5 {[%emt 0:00:39]} Bxf4 {[%emt 0:01:02]} 35. b5+ {[%emt 0:04:03]} Kd7 {[%emt 0:00:01]} 36. Bh4 {[%emt 0:00:08]} Rxc4 {[%emt 0:00:36]} 37. Rf7+ {[%emt 0:00:03]} Kc8 {[%emt 0:00:31]} 38. Rxh7 {[%emt 0:01:03]} Rb4 {[%emt 0:00:52]} 39. Rg7 {[%emt 0:01:41]} Rxb5 {[%emt 0:00:24]} 40. Rxg4 {[%emt 0:00:07]} Bd6 {[%emt 0:00:33]} 41. Rg7 {[%emt 0:00:45]} Rd5 {[%emt 0:00:24]} 42. Bg3 {[%emt 0:00:47]} b5 {[%emt 0:00:22]} 43. Rg4 {[%emt 0:08:35]} Be7 {[%emt 0:00:32]} 44. Rg8+ {[%emt 0:01:55]} 1/2-1/2